[Event "Championnat d'Europe de Blitz"]
[Date "2024.12.09"]
[White "Narva, Mai"]
[Black "Ochedzan, Tymon"]
[WhiteElo "2413"]
[BlackElo "2247"]
[Round "12.50"]
[Result "0-1"]
[TimeControl "180+2"]

1. e4 {[%clk 00:03:03]} e6 {[%emt 00:00:03] [%clk 00:03:03]} 2. d4 {[%clk
00:03:02]} d5 {[%emt 00:00:01] [%clk 00:03:04]} 3. Nc3 {[%emt 00:00:02] [%clk
00:03:03]} Nf6 {[%emt 00:00:01] [%clk 00:03:05]} 4. Bg5 {[%emt 00:00:02] [%clk
00:03:03]} Bb4 {[%emt 00:00:02] [%clk 00:03:05]} 5. e5 {[%emt 00:00:06] [%clk
00:02:59]} h6 {[%emt 00:00:02] [%clk 00:03:05]} 6. Bc1 {[%emt 00:00:02] [%clk
00:02:59]} Ne4 {[%emt 00:00:03] [%clk 00:03:04]} 7. Nge2 {[%emt 00:00:09] [%clk
00:02:51]} Bd7 {[%emt 00:00:12] [%clk 00:02:55]} 8. a3 {[%emt 00:00:20] [%clk
00:02:33]} Nxc3 {[%emt 00:00:04] [%clk 00:02:53]} 9. Nxc3 {[%emt 00:00:11] [%clk
00:02:24]} Be7 {[%emt 00:00:05] [%clk 00:02:50]} 10. Be3 {[%emt 00:00:11] [%clk
00:02:15]} O-O {[%emt 00:00:03] [%clk 00:02:49]} 11. Bd3 {[%emt 00:00:05] [%clk
00:02:12]} c5 {[%emt 00:00:08] [%clk 00:02:43]} 12. Qg4 {[%emt 00:00:45] [%clk
00:01:29]} Kh8 {[%emt 00:00:19] [%clk 00:02:26]} 13. dxc5 {[%emt 00:00:29] [%clk
00:01:02]} Nc6 {[%emt 00:00:06] [%clk 00:02:22]} 14. Bd4 {[%emt 00:00:03] [%clk
00:01:01]} Qc7 {[%emt 00:00:14] [%clk 00:02:10]} 15. Nb5 {[%emt 00:00:13] [%clk
00:00:50]} Qd8 {[%emt 00:00:15] [%clk 00:01:57]} 16. Nd6 {[%emt 00:00:08] [%clk
00:00:44]} b6 {[%emt 00:00:19] [%clk 00:01:39]} 17. cxb6 {[%emt 00:00:13] [%clk
00:00:33]} Bxd6 {[%emt 00:00:11] [%clk 00:01:30]} 18. O-O {[%emt 00:00:24] [%clk
00:00:11]} Bxe5 {[%emt 00:00:05] [%clk 00:01:28]} 19. c3 {[%emt 00:00:03] [%clk
00:00:10]} Bxd4 {[%emt 00:00:11] [%clk 00:01:19]} 20. cxd4 {[%clk 00:00:11]} e5
{[%emt 00:00:02] [%clk 00:01:19]} 21. Qg3 {[%clk 00:00:12]} e4 {[%emt 00:00:02]
[%clk 00:01:18]} 22. Bb5 {[%emt 00:00:04] [%clk 00:00:10]} Nxd4 {[%emt 00:00:03]
[%clk 00:01:17]} 23. Ba6 {[%emt 00:00:02] [%clk 00:00:11]} Qxb6 {[%emt 00:00:03]
[%clk 00:01:16]} 24. Rfd1 {[%emt 00:00:02] [%clk 00:00:11]} Nf5 {[%emt 00:00:06]
[%clk 00:01:12]} 0-1

[Site "Europe Echecs"]

[Event "Championnat d'Europe de Blitz"]
[Date "2024.12.09"]
[White "Alienkin, Aleksander"]
[Black "Redzisz, Michal"]
[WhiteElo "2337"]
[BlackElo "2263"]
[Round "12.51"]
[Result "1-0"]
[TimeControl "180+2"]

1. d4 {[%emt 00:00:03] [%clk 00:03:03]} Nf6 {[%clk 00:03:04]} 2. Nf3 {[%clk
00:03:03]} d5 {[%clk 00:03:05]} 3. c4 {[%emt 00:00:01] [%clk 00:03:04]} e6
{[%emt 00:00:08] [%clk 00:02:59]} 4. g3 {[%emt 00:00:01] [%clk 00:03:04]} dxc4
{[%emt 00:00:04] [%clk 00:02:58]} 5. Qa4+ {[%emt 00:00:05] [%clk 00:03:01]} Nbd7
{[%emt 00:00:03] [%clk 00:02:57]} 6. Bg2 {[%emt 00:00:05] [%clk 00:02:58]} a6
{[%emt 00:00:11] [%clk 00:02:48]} 7. Qxc4 {[%emt 00:00:06] [%clk 00:02:54]} c5
{[%clk 00:02:49]} 8. O-O {[%emt 00:00:06] [%clk 00:02:49]} b5 {[%emt 00:00:10]
[%clk 00:02:42]} 9. Qc2 {[%emt 00:00:02] [%clk 00:02:49]} Bb7 {[%emt 00:00:02]
[%clk 00:02:43]} 10. a4 {[%emt 00:00:12] [%clk 00:02:38]} Be4 {[%emt 00:00:27]
[%clk 00:02:18]} 11. Qd1 {[%emt 00:00:03] [%clk 00:02:36]} b4 {[%emt 00:00:07]
[%clk 00:02:15]} 12. Nbd2 {[%emt 00:00:02] [%clk 00:02:35]} Bb7 {[%clk
00:02:16]} 13. Nc4 {[%emt 00:00:08] [%clk 00:02:29]} Rc8 {[%emt 00:00:15] [%clk
00:02:03]} 14. Bf4 {[%emt 00:00:06] [%clk 00:02:25]} cxd4 {[%emt 00:00:22] [%clk
00:01:43]} 15. Qxd4 {[%emt 00:00:22] [%clk 00:02:04]} Nd5 {[%emt 00:01:05] [%clk
00:00:42]} 16. Nd6+ {[%emt 00:00:11] [%clk 00:01:54]} Bxd6 {[%emt 00:00:01]
[%clk 00:00:42]} 17. Bxd6 {[%clk 00:01:55]} N7b6 {[%emt 00:00:33] [%clk
00:00:13]} 18. Qxg7 {[%emt 00:00:07] [%clk 00:01:49]} Qf6 {[%emt 00:00:06] [%clk
00:00:09]} 19. Qxf6 {[%emt 00:00:06] [%clk 00:01:45]} Nxf6 {[%emt 00:00:01]
[%clk 00:00:10]} 20. Bxb4 {[%emt 00:00:02] [%clk 00:01:46]} Rc4 {[%emt 00:00:02]
[%clk 00:00:09]} 21. Bc3 {[%emt 00:00:02] [%clk 00:01:45]} Ke7 {[%emt 00:00:02]
[%clk 00:00:11]} 22. Nd2 {[%emt 00:00:05] [%clk 00:01:41]} Rc7 {[%emt 00:00:02]
[%clk 00:00:12]} 23. Bxb7 {[%emt 00:00:03] [%clk 00:01:40]} Rxb7 {[%clk
00:00:13]} 24. Ne4 {[%emt 00:00:05] [%clk 00:01:37]} Nbd5 {[%emt 00:00:02] [%clk
00:00:14]} 25. Be5 {[%emt 00:00:15] [%clk 00:01:23]} Rd8 {[%emt 00:00:08] [%clk
00:00:08]} 26. Nxf6 {[%emt 00:00:05] [%clk 00:01:20]} Nxf6 {[%emt 00:00:01]
[%clk 00:00:09]} 27. Rfd1 {[%emt 00:00:04] [%clk 00:01:18]} Nd5 {[%emt 00:00:07]
[%clk 00:00:05]} 28. e4 {[%emt 00:00:02] [%clk 00:01:17]} Nb6 {[%emt 00:00:03]
[%clk 00:00:05]} 29. Bf6+ {[%emt 00:00:01] [%clk 00:01:17]} Kxf6 {[%emt
00:00:01] [%clk 00:00:06]} 30. Rxd8 {[%clk 00:01:18]} Nc4 {[%clk 00:00:07]} 31.
Ra8 {[%emt 00:00:06] [%clk 00:01:14]} a5 {[%emt 00:00:03] [%clk 00:00:07]} 32.
Rc1 {[%emt 00:00:01] [%clk 00:01:12]} Nd2 {[%emt 00:00:04] [%clk 00:00:07]} 33.
e5+ {[%emt 00:00:08] [%clk 00:01:06]} Kxe5 {[%emt 00:00:04] [%clk 00:00:06]} 34.
Rxa5+ {[%emt 00:00:02] [%clk 00:01:06]} Ke4 {[%clk 00:00:07]} 35. Re1+ {[%emt
00:00:01] [%clk 00:01:06]} Kd3 {[%clk 00:00:08]} 36. Re3+ {[%emt 00:00:02] [%clk
00:01:06]} Kd4 {[%emt 00:00:03] [%clk 00:00:06]} 37. Rb5 {[%emt 00:00:03] [%clk
00:01:06]} Rc7 {[%emt 00:00:01] [%clk 00:00:08]} 38. a5 {[%emt 00:00:02] [%clk
00:01:05]} Rc1+ {[%emt 00:00:04] [%clk 00:00:06]} 39. Kg2 {[%clk 00:01:06]} Nc4
{[%emt 00:00:01] [%clk 00:00:07]} 40. Rc3 {[%emt 00:00:06] [%clk 00:00:59]} Ra1
{[%emt 00:00:05] [%clk 00:00:07]} 41. Rb4 {[%emt 00:00:02] [%clk 00:00:59]} 1-0

[Site "Europe Echecs"]

[Event "Championnat d'Europe de Blitz"]
[Date "2024.12.09"]
[White "Zlatkov, Anton"]
[Black "Upleger, Martin"]
[WhiteElo "2324"]
[BlackElo "2297"]
[Round "12.52"]
[Result "1-0"]
[TimeControl "180+2"]

1. c4 {[%emt 00:15:27] [%clk 00:03:01]} Nf6 {[%emt 00:00:05] [%clk 00:02:59]} 2.
Nc3 {[%emt 00:00:01] [%clk 00:03:02]} d5 {[%clk 00:03:01]} 3. cxd5 {[%emt
00:00:01] [%clk 00:03:03]} Nxd5 {[%emt 00:00:01] [%clk 00:03:02]} 4. Nf3 {[%emt
00:00:01] [%clk 00:03:05]} e6 {[%emt 00:00:01] [%clk 00:03:02]} 5. g3 {[%emt
00:00:07] [%clk 00:02:59]} Be7 {[%emt 00:00:05] [%clk 00:02:59]} 6. Bg2 {[%emt
00:00:01] [%clk 00:03:00]} O-O {[%clk 00:03:00]} 7. d4 {[%emt 00:00:08] [%clk
00:02:54]} c5 {[%emt 00:00:07] [%clk 00:02:55]} 8. O-O {[%emt 00:00:06] [%clk
00:02:50]} Nxc3 {[%emt 00:00:12] [%clk 00:02:44]} 9. bxc3 {[%emt 00:00:02] [%clk
00:02:50]} Nc6 {[%emt 00:00:01] [%clk 00:02:45]} 10. e4 {[%emt 00:00:03] [%clk
00:02:50]} b6 {[%emt 00:00:02] [%clk 00:02:45]} 11. d5 {[%emt 00:00:06] [%clk
00:02:45]} exd5 {[%emt 00:00:02] [%clk 00:02:46]} 12. exd5 {[%emt 00:00:01]
[%clk 00:02:46]} Na5 {[%clk 00:02:47]} 13. Re1 {[%emt 00:00:21] [%clk 00:02:27]}
Bd6 {[%emt 00:00:05] [%clk 00:02:43]} 14. Ng5 {[%emt 00:00:14] [%clk 00:02:16]}
Bf5 {[%emt 00:00:16] [%clk 00:02:29]} 15. Be4 {[%emt 00:00:25] [%clk 00:01:53]}
Bxe4 {[%emt 00:00:53] [%clk 00:01:38]} 16. Nxe4 {[%clk 00:01:54]} h6 {[%emt
00:00:01] [%clk 00:01:39]} 17. Nxd6 {[%emt 00:00:03] [%clk 00:01:53]} Qxd6
{[%clk 00:01:40]} 18. Bf4 {[%emt 00:00:01] [%clk 00:01:54]} Qd7 {[%emt 00:00:01]
[%clk 00:01:41]} 19. Qd3 {[%emt 00:00:02] [%clk 00:01:53]} Rfe8 {[%emt 00:00:13]
[%clk 00:01:30]} 20. d6 {[%emt 00:00:20] [%clk 00:01:35]} Rad8 {[%emt 00:00:20]
[%clk 00:01:12]} 21. h4 {[%emt 00:00:06] [%clk 00:01:32]} Re6 {[%emt 00:00:06]
[%clk 00:01:08]} 22. Qd5 {[%emt 00:00:10] [%clk 00:01:24]} Qc6 {[%emt 00:00:23]
[%clk 00:00:47]} 23. Qf5 {[%emt 00:00:24] [%clk 00:01:01]} Rf6 {[%emt 00:00:12]
[%clk 00:00:37]} 24. Qe4 {[%emt 00:00:14] [%clk 00:00:49]} Qxe4 {[%emt 00:00:02]
[%clk 00:00:37]} 25. Rxe4 {[%emt 00:00:01] [%clk 00:00:49]} Re6 {[%clk
00:00:39]} 26. Rxe6 {[%emt 00:00:06] [%clk 00:00:45]} fxe6 {[%emt 00:00:02]
[%clk 00:00:40]} 27. Rd1 {[%emt 00:00:04] [%clk 00:00:42]} Rd7 {[%emt 00:00:05]
[%clk 00:00:37]} 28. Be5 {[%emt 00:00:05] [%clk 00:00:39]} Nc6 {[%emt 00:00:02]
[%clk 00:00:37]} 29. f4 {[%emt 00:00:01] [%clk 00:00:40]} Kf7 {[%emt 00:00:05]
[%clk 00:00:34]} 30. Kg2 {[%emt 00:00:01] [%clk 00:00:41]} Kg6 {[%emt 00:00:01]
[%clk 00:00:35]} 31. g4 {[%emt 00:00:05] [%clk 00:00:38]} h5 {[%emt 00:00:02]
[%clk 00:00:35]} 32. Kf3 {[%emt 00:00:03] [%clk 00:00:37]} hxg4+ {[%emt
00:00:03] [%clk 00:00:35]} 33. Kxg4 {[%emt 00:00:01] [%clk 00:00:38]} Nb8 {[%emt
00:00:08] [%clk 00:00:29]} 34. h5+ {[%emt 00:00:02] [%clk 00:00:38]} Kf7 {[%clk
00:00:30]} 35. Kf3 {[%emt 00:00:04] [%clk 00:00:37]} Rd8 {[%emt 00:00:04] [%clk
00:00:28]} 36. Rg1 {[%emt 00:00:01] [%clk 00:00:37]} Rg8 {[%emt 00:00:02] [%clk
00:00:28]} 37. Ke4 {[%emt 00:00:03] [%clk 00:00:36]} Nd7 {[%emt 00:00:01] [%clk
00:00:30]} 38. c4 {[%emt 00:00:04] [%clk 00:00:34]} a6 {[%emt 00:00:09] [%clk
00:00:23]} 39. a4 {[%emt 00:00:02] [%clk 00:00:34]} Nb8 {[%emt 00:00:14] [%clk
00:00:11]} 40. f5 {[%emt 00:00:12] [%clk 00:00:24]} exf5+ 41. Kxf5 {[%clk
00:00:25]} Nd7 {[%clk 00:00:13]} 42. Bc3 {[%emt 00:00:01] [%clk 00:00:25]} Nb8
{[%emt 00:00:05] [%clk 00:00:10]} 43. Re1 {[%emt 00:00:02] [%clk 00:00:26]} Nc6
{[%emt 00:00:01] [%clk 00:00:11]} 44. Rg1 {[%emt 00:00:04] [%clk 00:00:24]} Nb8
{[%emt 00:00:01] [%clk 00:00:12]} 45. Ke5 {[%emt 00:00:01] [%clk 00:00:22]} Rh8
{[%emt 00:00:04] [%clk 00:00:13]} 46. Ke4 {[%emt 00:00:02] [%clk 00:00:22]} Rxh5
{[%emt 00:00:02] [%clk 00:00:13]} 47. Rxg7+ {[%emt 00:00:01] [%clk 00:00:22]}
Ke6 {[%clk 00:00:15]} 48. Rg6+ {[%emt 00:00:02] [%clk 00:00:22]} Kd7 {[%emt
00:00:02] [%clk 00:00:16]} 49. Be5 {[%emt 00:00:03] [%clk 00:00:22]} Nc6 {[%emt
00:00:03] [%clk 00:00:14]} 50. Rg7+ {[%clk 00:00:23]} Ke6 {[%clk 00:00:16]} 51.
Bf4 {[%emt 00:00:01] [%clk 00:00:24]} Rh1 {[%emt 00:00:05] [%clk 00:00:13]} 52.
Rc7 {[%emt 00:00:02] [%clk 00:00:24]} Re1+ {[%emt 00:00:02] [%clk 00:00:13]} 53.
Kf3 {[%clk 00:00:25]} Na5 {[%emt 00:00:06] [%clk 00:00:09]} 54. Re7+ {[%emt
00:00:07] [%clk 00:00:20]} Kf6 {[%emt 00:00:01] [%clk 00:00:10]} 55. Rxe1 {[%emt
00:00:01] [%clk 00:00:21]} 1-0

[Site "Europe Echecs"]

[Event "Championnat d'Europe de Blitz"]
[Date "2024.12.09"]
[White "Vidikjevski, Vancho"]
[Black "Tsolakidou, Stavroula"]
[WhiteElo "1800"]
[BlackElo "2451"]
[Round "12.53"]
[Result "0-1"]
[TimeControl "180+2"]

1. e4 {[%emt 00:00:03] [%clk 00:03:03]} e6 {[%clk 00:03:02]} 2. Nf3 {[%emt
00:00:02] [%clk 00:03:03]} d5 {[%clk 00:03:03]} 3. exd5 {[%emt 00:00:06] [%clk
00:02:59]} exd5 {[%emt 00:00:02] [%clk 00:03:04]} 4. d4 {[%clk 00:03:00]} c5
{[%emt 00:00:03] [%clk 00:03:03]} 5. c3 {[%emt 00:00:04] [%clk 00:02:58]} Nf6
{[%emt 00:00:02] [%clk 00:03:02]} 6. Bd3 {[%emt 00:00:02] [%clk 00:02:58]} Nc6
{[%emt 00:00:03] [%clk 00:03:01]} 7. h3 {[%emt 00:00:03] [%clk 00:02:57]} c4
{[%emt 00:00:04] [%clk 00:03:00]} 8. Bc2 {[%emt 00:00:01] [%clk 00:02:57]} Bd6
{[%emt 00:00:02] [%clk 00:03:00]} 9. O-O {[%emt 00:00:04] [%clk 00:02:56]} O-O
{[%emt 00:00:04] [%clk 00:02:57]} 10. Re1 {[%emt 00:00:03] [%clk 00:02:55]} h6
{[%emt 00:00:19] [%clk 00:02:41]} 11. Nbd2 {[%emt 00:00:02] [%clk 00:02:55]} Be6
{[%emt 00:00:06] [%clk 00:02:36]} 12. Nf1 {[%emt 00:00:02] [%clk 00:02:55]} Qc7
{[%emt 00:00:07] [%clk 00:02:32]} 13. Ne3 {[%emt 00:00:14] [%clk 00:02:42]} Rfe8
{[%clk 00:02:33]} 14. Nf5 {[%emt 00:00:12] [%clk 00:02:32]} Bf8 {[%emt 00:00:05]
[%clk 00:02:30]} 15. Ng3 {[%emt 00:00:04] [%clk 00:02:30]} b5 {[%emt 00:00:14]
[%clk 00:02:18]} 16. a3 {[%emt 00:00:03] [%clk 00:02:29]} a5 {[%emt 00:00:02]
[%clk 00:02:18]} 17. Be3 {[%emt 00:00:08] [%clk 00:02:22]} b4 {[%emt 00:00:03]
[%clk 00:02:18]} 18. axb4 {[%emt 00:00:03] [%clk 00:02:21]} axb4 {[%emt
00:00:01] [%clk 00:02:19]} 19. Qd2 {[%emt 00:00:06] [%clk 00:02:17]} b3 {[%emt
00:00:13] [%clk 00:02:08]} 20. Bf5 {[%clk 00:02:18]} Bd6 {[%emt 00:00:13] [%clk
00:01:57]} 21. Bxe6 {[%emt 00:00:02] [%clk 00:02:17]} fxe6 {[%emt 00:00:02]
[%clk 00:01:57]} 22. Nf1 {[%emt 00:00:10] [%clk 00:02:10]} Ne4 {[%emt 00:00:07]
[%clk 00:01:52]} 23. Qc1 {[%emt 00:00:14] [%clk 00:01:58]} Ra2 {[%emt 00:00:16]}
24. Rxa2 {[%clk 00:01:48]} bxa2 {[%emt 00:00:02] [%clk 00:01:50]} 25. N3d2
{[%emt 00:00:02] [%clk 00:01:48]} Nf6 {[%emt 00:00:08] [%clk 00:01:43]} 26. Qa1
{[%emt 00:00:08] [%clk 00:01:43]} Ra8 {[%emt 00:00:01] [%clk 00:01:44]} 27. Nf3
{[%emt 00:00:05] [%clk 00:01:40]} Qa5 {[%emt 00:00:07] [%clk 00:01:39]} 28. Bd2
{[%emt 00:00:15] [%clk 00:01:27]} Ne4 {[%emt 00:00:03] [%clk 00:01:38]} 29. Rd1
{[%emt 00:00:15] [%clk 00:01:13]} Qa4 {[%emt 00:00:03] [%clk 00:01:38]} 30. Rc1
{[%emt 00:00:08] [%clk 00:01:06]} Na5 {[%emt 00:00:04] [%clk 00:01:37]} 31. b4
{[%emt 00:00:12] [%clk 00:00:57]} Nb3 {[%emt 00:00:03] [%clk 00:01:36]} 32. Qb2
{[%emt 00:00:07] [%clk 00:00:51]} Nxc1 {[%emt 00:00:03] [%clk 00:01:35]} 0-1

[Site "Europe Echecs"]

[Event "Championnat d'Europe de Blitz"]
[Date "2024.12.09"]
[White "Sarana, Alexey"]
[Black "Mamedov, Rauf"]
[WhiteElo "2674"]
[BlackElo "2656"]
[Round "13.2"]
[Result "1-0"]
[TimeControl "180+2"]

1. d4 {[%emt 00:18:01] [%clk 00:03:04]} d5 {[%clk 00:03:04]} 2. c4 {[%clk
00:03:05]} e6 {[%clk 00:03:05]} 3. Nc3 {[%emt 00:00:04]} c5 4. Nf3 {[%clk
00:03:06]} cxd4 {[%emt 00:00:06] [%clk 00:03:04]} 5. Nxd4 {[%clk 00:03:07]} e5
{[%emt 00:00:18] [%clk 00:02:47]} 6. Ndb5 {[%emt 00:00:19] [%clk 00:02:50]} a6
{[%emt 00:00:01] [%clk 00:02:48]} 7. Qa4 {[%emt 00:00:03] [%clk 00:02:49]} Bd7
{[%emt 00:00:58] [%clk 00:01:52]} 8. cxd5 {[%emt 00:00:01] [%clk 00:02:50]} Nf6
{[%emt 00:00:06] [%clk 00:01:48]} 9. e4 {[%emt 00:00:02] [%clk 00:02:50]} Bc5
{[%emt 00:00:03] [%clk 00:01:47]} 10. Be3 {[%emt 00:00:02] [%clk 00:02:50]} Bxe3
{[%emt 00:00:09] [%clk 00:01:40]} 11. Nd6+ {[%emt 00:00:01] [%clk 00:02:51]} Kf8
{[%emt 00:00:41] [%clk 00:01:01]} 12. Qa3 {[%emt 00:00:01] [%clk 00:02:52]}
Bxf2+ {[%emt 00:00:09] [%clk 00:00:54]} 13. Kxf2 {[%emt 00:00:23] [%clk
00:02:31]} Kg8 {[%emt 00:00:05] [%clk 00:00:52]} 14. Be2 {[%emt 00:00:19] [%clk
00:02:13]} Qb6+ {[%emt 00:00:01] [%clk 00:00:52]} 15. Ke1 {[%emt 00:00:03] [%clk
00:02:12]} Ng4 {[%emt 00:00:10] [%clk 00:00:44]} 16. Rf1 {[%emt 00:01:14] [%clk
00:01:00]} Ne3 {[%emt 00:00:03] [%clk 00:00:43]} 17. Nc4 {[%emt 00:00:02] [%clk
00:01:01]} Nxc4 {[%emt 00:00:08] [%clk 00:00:37]} 18. Bxc4 {[%emt 00:00:01]
[%clk 00:01:01]} Qe3+ {[%emt 00:00:15] [%clk 00:00:24]} 19. Be2 {[%emt 00:00:01]
[%clk 00:01:02]} Qg5 {[%emt 00:00:01] [%clk 00:00:25]} 20. Qd6 {[%emt 00:00:29]
[%clk 00:00:36]} h5 {[%emt 00:00:07] [%clk 00:00:20]} 21. Qc7 {[%emt 00:00:01]
[%clk 00:00:37]} Rh6 {[%emt 00:00:13] [%clk 00:00:08]} 22. Qxb7 {[%emt 00:00:01]
[%clk 00:00:38]} Qh4+ {[%emt 00:00:05] [%clk 00:00:05]} 23. Rf2 {[%emt 00:00:07]
[%clk 00:00:33]} Qxh2 {[%emt 00:00:03] [%clk 00:00:05]} 24. Qxa8 {[%emt
00:00:03] [%clk 00:00:32]} Rb6 {[%clk 00:00:06]} 25. Qa7 {[%emt 00:00:09] [%clk
00:00:26]} Rxb2 {[%emt 00:00:02] [%clk 00:00:06]} 26. Nd1 {[%emt 00:00:11] [%clk
00:00:16]} Rb4 {[%emt 00:00:05] [%clk 00:00:03]} 27. Qe3 {[%emt 00:00:06] [%clk
00:00:12]} Bb5 {[%emt 00:00:02] [%clk 00:00:04]} 28. Bxb5 {[%emt 00:00:07] [%clk
00:00:07]} axb5 {[%clk 00:00:05]} 29. a3 {[%emt 00:00:03] [%clk 00:00:06]} Rd4
{[%clk 00:00:06]} 30. Rc1 {[%emt 00:00:01] [%clk 00:00:07]} Nd7 {[%clk
00:00:07]} 31. Qf3 {[%emt 00:00:02] [%clk 00:00:07]} Nf6 {[%emt 00:00:02] [%clk
00:00:08]} 32. Nc3 {[%emt 00:00:02] [%clk 00:00:06]} Ng4 {[%emt 00:00:03] [%clk
00:00:07]} 33. Qxf7+ Kh7 34. Qf5+ {[%emt 00:00:02]} Kh6 35. Qf3 {[%emt 00:00:04]
[%clk 00:00:06]} Qh4 {[%emt 00:00:03] [%clk 00:00:10]} 36. g3 {[%emt 00:00:02]
[%clk 00:00:06]} Qg5 {[%emt 00:00:01] [%clk 00:00:11]} 37. Rcc2 {[%clk
00:00:06]} Ne3 {[%emt 00:00:04] [%clk 00:00:11]} 38. Rfe2 {[%clk 00:00:05]} Rd3
{[%emt 00:00:06] [%clk 00:00:09]} 39. Qf2 {[%clk 00:00:05]} Nxc2+ {[%emt
00:00:06] [%clk 00:00:07]} 40. Rxc2 Rxg3 {[%clk 00:00:08]} 41. Ne2 {[%clk
00:00:05]} Rxa3 {[%emt 00:00:02] [%clk 00:00:09]} 42. Rc6+ {[%clk 00:00:06]} g6
{[%emt 00:00:01] [%clk 00:00:00]} 1-0

[Site "Europe Echecs"]

[Event "Championnat d'Europe de Blitz"]
[Date "2024.12.09"]
[White "Santos Latasa, Jaime"]
[Black "Jobava, Baadur"]
[WhiteElo "2628"]
[BlackElo "2578"]
[Round "13.3"]
[Result "0-1"]
[TimeControl "180+2"]

1. e4 {[%emt 00:18:20] [%clk 00:03:02]} d6 {[%emt 00:00:01] [%clk 00:03:03]} 2.
d4 {[%emt 00:00:02] [%clk 00:03:01]} Nf6 {[%emt 00:00:01] [%clk 00:03:04]} 3.
Nc3 {[%clk 00:03:02]} e5 {[%emt 00:00:02] [%clk 00:03:05]} 4. Nf3 {[%emt
00:00:01] [%clk 00:03:03]} Nbd7 {[%clk 00:03:06]} 5. Bc4 {[%emt 00:00:02] [%clk
00:03:03]} Be7 {[%emt 00:00:01] [%clk 00:03:07]} 6. a4 {[%emt 00:00:02] [%clk
00:03:03]} O-O {[%emt 00:00:01] [%clk 00:03:07]} 7. O-O {[%emt 00:00:02] [%clk
00:03:03]} c6 {[%clk 00:03:09]} 8. h3 {[%emt 00:00:04] [%clk 00:03:01]} h6
{[%clk 00:03:10]} 9. Re1 {[%emt 00:00:04] [%clk 00:02:59]} a5 {[%emt 00:00:01]
[%clk 00:03:11]} 10. Be3 {[%emt 00:00:09] [%clk 00:02:51]} Re8 {[%emt 00:00:01]
[%clk 00:03:12]} 11. Ba2 {[%emt 00:00:05] [%clk 00:02:48]} Qc7 {[%emt 00:00:05]
[%clk 00:03:09]} 12. dxe5 {[%emt 00:00:24] [%clk 00:02:26]} dxe5 {[%emt
00:00:04] [%clk 00:03:07]} 13. Nh4 {[%emt 00:00:01] [%clk 00:02:27]} Bc5 {[%emt
00:00:34] [%clk 00:02:36]} 14. Bxh6 {[%emt 00:01:02] [%clk 00:01:26]} gxh6
{[%emt 00:00:01] [%clk 00:02:37]} 15. Qf3 {[%emt 00:00:02] [%clk 00:01:27]} Qd6
{[%emt 00:00:29] [%clk 00:02:10]} 16. Qg3+ {[%emt 00:00:08] [%clk 00:01:20]} Kh7
{[%emt 00:00:38] [%clk 00:01:33]} 17. Bxf7 {[%emt 00:00:06] [%clk 00:01:17]} Nf8
{[%clk 00:01:35]} 18. Ng6 {[%emt 00:00:42] [%clk 00:00:37]} Nh5 {[%emt 00:00:18]
[%clk 00:01:18]} 19. Qf3 {[%emt 00:00:08] [%clk 00:00:32]} Nxg6 {[%emt 00:00:15]
[%clk 00:01:05]} 20. Bxe8 {[%emt 00:00:04] [%clk 00:00:30]} Nhf4 {[%emt
00:00:04] [%clk 00:01:03]} 21. Rad1 {[%emt 00:00:03] [%clk 00:00:28]} Qf6 {[%emt
00:00:04] [%clk 00:01:01]} 22. Bd7 {[%emt 00:00:04] [%clk 00:00:27]} Nh4 {[%emt
00:00:09] [%clk 00:00:54]} 23. Qg4 {[%emt 00:00:03] [%clk 00:00:25]} h5 {[%emt
00:00:01] [%clk 00:00:55]} 24. Qg3 {[%emt 00:00:07] [%clk 00:00:20]} Nfxg2
{[%emt 00:00:06] [%clk 00:00:51]} 25. Bxc8 {[%emt 00:00:11] [%clk 00:00:12]}
Rxc8 {[%emt 00:00:05] [%clk 00:00:48]} 26. Rd7+ {[%emt 00:00:02] [%clk
00:00:12]} Kh8 {[%emt 00:00:03] [%clk 00:00:47]} 27. Red1 {[%emt 00:00:07] [%clk
00:00:06]} Rg8 {[%emt 00:00:02] [%clk 00:00:47]} 28. Rd8 {[%emt 00:00:05] [%clk
00:00:03]} Bf8 {[%emt 00:00:22] [%clk 00:00:28]} 0-1

[Site "Europe Echecs"]